bitfinex/quotes_BTCUSD_20250616
["timestamp","ask_amount","ask_price","bid_price","bid_amount"]
[1750081502962,0.00125,106820.0,106810.0,1.00222877]
[1750081503190,0.00125,106820.0,106810.0,2.05341587]
[1750081503422,0.00125,106820.0,106810.0,2.79741587]
[1750081503640,0.00825,106820.0,106810.0,2.79741587]
[1750081503863,0.01525,106820.0,106810.0,2.79741587]
[1750081504303,0.01525,106820.0,106810.0,2.74150428]
[1750081505231,0.00063529,106820.0,106810.0,3.51591046]
[1750081505460,0.00063529,106820.0,106810.0,3.53604071]
[1750081505668,0.00063529,106820.0,106810.0,3.153312]
[1750081505893,0.00125,106830.0,106820.0,0.68285526]
[1750081506121,0.00139173,106830.0,106820.0,1.46464328]
[1750081506424,0.00139173,106830.0,106820.0,1.71555844]
[1750081506643,0.00139173,106830.0,106820.0,1.82155617]
[1750081506872,0.01769173,106830.0,106820.0,1.92926267]
[1750081507149,0.03319173,106830.0,106820.0,1.32472182]
[1750081507329,0.03791173,106830.0,106820.0,1.23155617]
[1750081507668,0.03319173,106830.0,106820.0,1.23155617]
[1750081507898,0.03769173,106830.0,106820.0,1.12794327]
[1750081508116,0.02139173,106830.0,106820.0,1.17975188]
[1750081508337,0.00139173,106830.0,106820.0,0.58336478]
[1750081508556,0.00139173,106830.0,106820.0,0.63926267]
[1750081508798,0.00139173,106830.0,106820.0,1.23164977]
[1750081509268,0.00139173,106830.0,106820.0,0.97926267]
[1750081509508,0.00139173,106830.0,106820.0,1.53438201]
[1750081509732,0.00539173,106830.0,106820.0,1.53438201]
[1750081509948,0.00539173,106830.0,106820.0,1.61738201]
[1750081510178,0.00539173,106830.0,106820.0,1.56148412]
[1750081510404,0.00539173,106830.0,106820.0,1.68600652]
[1750081510853,0.00139173,106830.0,106820.0,1.61148412]
[1750081511082,0.00139173,106830.0,106820.0,2.31148412]
[1750081511320,0.00639173,106830.0,106820.0,2.40664328]
[1750081511543,0.00639173,106830.0,106820.0,1.81425618]
[1750081511767,0.00639173,106830.0,106820.0,2.40664328]
[1750081511990,0.00639173,106830.0,106820.0,2.31348412]
[1750081512243,0.00639173,106830.0,106820.0,2.38800922]
[1750081512451,0.00639173,106830.0,106820.0,2.38799242]
[1750081512722,0.00639173,106830.0,106820.0,2.40664328]
[1750081514297,0.00639173,106830.0,106820.0,2.63664328]
[1750081515027,0.00639173,106830.0,106820.0,2.93544328]
[1750081515217,0.00639173,106830.0,106820.0,3.52783038]
[1750081515695,0.00639173,106830.0,106820.0,2.93544328]
[1750081516232,0.7794068,106840.0,106830.0,0.5428351]
[1750081516467,0.77949522,106840.0,106830.0,1.99290718]
[1750081517389,0.77949522,106840.0,106830.0,3.23709428]
[1750081517623,0.77949522,106840.0,106830.0,2.64470718]
[1750081517849,0.77949522,106840.0,106830.0,2.57026396]
[1750081518074,0.77949522,106840.0,106830.0,3.16265106]
[1750081518337,0.18293818,106840.0,106830.0,3.16265106]
[1750081518562,0.13614357,106840.0,106830.0,3.16265106]
[1750081518792,0.11583357,106840.0,106830.0,3.16265106]
[1750081519139,0.10958157,106840.0,106830.0,3.16265106]
[1750081519225,0.11258157,106840.0,106830.0,3.63365106]
[1750081519687,0.06278696,106840.0,106830.0,3.63265106]
[1750081520143,0.05528697,106840.0,106830.0,3.63365106]
[1750081520615,0.05528697,106840.0,106830.0,2.44887686]
[1750081520852,0.02536376,106840.0,106830.0,3.63365106]
[1750081521080,0.02236376,106840.0,106830.0,3.63265106]
[1750081521784,0.01672376,106840.0,106830.0,3.63265106]
[1750081522254,2.00325,106850.0,106840.0,0.66981495]
[1750081522509,2.00325,106850.0,106840.0,3.01835394]
[1750081523267,1.98135204,106850.0,106840.0,1.84007974]
[1750081523493,1.98135204,106850.0,106840.0,3.02485394]
[1750081523725,1.98135204,106850.0,106840.0,1.83827974]
[1750081523958,1.98135204,106850.0,106840.0,1.82057974]
[1750081524194,1.98435204,106850.0,106840.0,3.00735394]
[1750081525758,1.98435204,106850.0,106840.0,3.04035394]
[1750081525967,1.6226202,106850.0,106840.0,2.74155394]
[1750081526187,1.5925602,106850.0,106840.0,2.76917983]
[1750081526411,1.47020768,106850.0,106840.0,2.76917983]
[1750081526626,1.4237082,106850.0,106840.0,2.76917983]
[1750081526866,1.38584734,106850.0,106840.0,2.7124568]
[1750081527078,1.23413947,106850.0,106840.0,3.2745878]
[1750081527292,1.23713947,106850.0,106840.0,3.35000427]
[1750081527502,1.13815727,106850.0,106840.0,3.35000427]
[1750081527710,1.22233891,106860.0,106850.0,1.35279481]
[1750081527920,1.22233891,106860.0,106850.0,2.74142367]
[1750081528830,1.22233891,106860.0,106850.0,2.79065405]
[1750081529471,1.22233891,106860.0,106850.0,2.80185405]
[1750081529679,1.22533891,106860.0,106850.0,2.80465405]
[1750081529891,1.17855802,106860.0,106850.0,2.74992367]
[1750081530099,1.12877713,106860.0,106850.0,4.48006367]
[1750081530283,1.08199624,106860.0,106850.0,3.17509867]
[1750081530531,1.08499624,106860.0,106850.0,2.74992367]
[1750081530762,1.08499624,106860.0,106850.0,2.15573657]
[1750081530982,1.08499624,106860.0,106850.0,2.69812367]
[1750081531208,1.08499624,106860.0,106850.0,2.86831109]
[1750081531419,1.08499624,106860.0,106850.0,2.89022409]
[1750081531625,1.08199624,106860.0,106850.0,2.24683699]
[1750081531833,1.08199624,106860.0,106850.0,2.84022409]
[1750081532030,1.08199624,106860.0,106850.0,2.89022409]
[1750081532496,1.08199624,106860.0,106850.0,2.88922409]
[1750081532709,1.08199624,106860.0,106850.0,2.90322409]
[1750081532915,1.08199624,106860.0,106850.0,2.90142409]
[1750081533373,1.08199624,106860.0,106850.0,2.90242409]
[1750081534640,1.07263955,106860.0,106850.0,2.90242409]
[1750081534846,1.07263955,106860.0,106850.0,2.88472409]
[1750081535268,1.07263955,106860.0,106850.0,2.90472409]
[1750081535488,1.08823955,106860.0,106850.0,2.85472409]
[1750081535701,1.10343955,106860.0,106850.0,2.85472409]
[1750081535959,1.10343955,106860.0,106850.0,2.14524592]
[1750081536167,1.10343955,106860.0,106850.0,2.19524592]
[1750081536374,1.10343955,106860.0,106850.0,2.78763302]
[1750081536579,1.10343955,106860.0,106850.0,2.73763302]
[1750081537003,1.10343955,106860.0,106850.0,2.78763302]
[1750081537223,1.10836955,106860.0,106850.0,1.74070507]
[1750081537433,1.10836955,106860.0,106850.0,0.98349572]
[1750081537646,1.10836955,106860.0,106850.0,1.32349572]
[1750081538314,1.10836955,106860.0,106850.0,0.98249572]
[1750081538811,1.10836955,106860.0,106850.0,0.70865454]
[1750081539667,1.10936955,106860.0,106850.0,0.69305454]
[1750081539890,1.10936955,106860.0,106850.0,0.64425454]
[1750081540098,1.11036955,106860.0,106850.0,0.67125454]
[1750081540526,1.10936955,106860.0,106850.0,0.64425454]
[1750081540950,1.11036955,106860.0,106850.0,0.66925454]
[1750081541162,1.11036955,106860.0,106850.0,0.67825454]
[1750081541163,1.11236955,106860.0,106850.0,0.67825454]
[1750081541378,1.11136955,106860.0,106850.0,0.65325454]
[1750081541591,1.10936955,106860.0,106850.0,0.64425454]
[1750081541804,1.11236955,106860.0,106850.0,0.66425454]
[1750081542019,1.11872688,106860.0,106850.0,0.64425454]
[1750081542230,1.11136955,106860.0,106850.0,0.65325454]
[1750081542494,1.1207268,106860.0,106850.0,0.65325454]
[1750081542711,1.1207268,106860.0,106850.0,0.64425454]
[1750081542712,1.10936955,106860.0,106850.0,0.64425454]
[1750081542924,1.44178431,106860.0,106850.0,0.52591744]
[1750081543141,1.45114199,106860.0,106850.0,0.71309572]
[1750081543574,1.46149985,106860.0,106850.0,0.73609572]
[1750081544022,1.64766062,106860.0,106850.0,0.68373742]
[1750081544228,1.66220225,106860.0,106850.0,0.40589583]
[1750081544449,1.66320225,106860.0,106850.0,0.42689583]
[1750081544650,1.65484474,106860.0,106850.0,0.232]
[1750081544860,1.64548706,106860.0,106850.0,0.41917828]
[1750081545064,1.64548706,106860.0,106850.0,0.4285371]
[1750081545300,1.64548706,106860.0,106850.0,0.232]
[1750081545751,1.64548706,106860.0,106850.0,0.41917828]
[1750081545953,1.64548706,106860.0,106850.0,0.42853719]
[1750081546153,1.6361292,106860.0,106850.0,0.42853719]
[1750081546472,0.21082601,106850.0,106840.0,0.22463354]
[1750081546686,0.22954278,106850.0,106840.0,0.22463354]
[1750081546892,0.354289,106840.0,106830.0,0.21529408]
[1750081547109,0.36364826,106840.0,106830.0,0.31153584]
[1750081547320,0.354289,106840.0,106830.0,0.31153584]
[1750081547528,0.36364826,106840.0,106830.0,0.31153584]
[1750081547959,0.354289,106840.0,106830.0,0.38673441]
[1750081548159,0.36364817,106840.0,106830.0,0.38673441]
[1750081548388,0.38336713,106840.0,106830.0,0.41173441]
[1750081548602,0.63947647,106840.0,106830.0,0.025]
[1750081548850,0.20595348,106820.0,106810.0,0.07519857]
[1750081549068,0.57900594,106820.0,106810.0,0.09624176]
[1750081549292,0.36369084,106820.0,106810.0,0.21542299]
[1750081549535,0.36369092,106820.0,106810.0,0.21542299]
[1750081549976,0.38241347,106820.0,106810.0,0.21542299]
[1750081550299,0.38241347,106820.0,106810.0,0.20606128]
[1750081550300,0.57900577,106820.0,106810.0,0.20606128]
[1750081550509,0.37305211,106820.0,106810.0,0.23414712]
[1750081550724,0.38341347,106820.0,106810.0,0.23614712]
[1750081550941,0.59136731,106820.0,106810.0,0.23614721]
[1750081551162,0.58200639,106820.0,106810.0,0.23414721]
[1750081551384,0.58100639,106820.0,106810.0,0.23414721]
[1750081551850,0.5726452,106820.0,106810.0,0.19869913]
[1750081552068,0.59140484,106820.0,106810.0,0.21742335]
[1750081552305,0.59140484,106820.0,106810.0,0.21742352]
[1750081552526,0.60057021,106820.0,106810.0,0.22678558]
[1750081552985,0.60057021,106820.0,106810.0,0.20806137]
[1750081553207,0.58184722,106820.0,106810.0,0.19869921]
[1750081553419,0.58184722,106820.0,106810.0,0.00208842]
[1750081553650,0.58184722,106820.0,106790.0,0.2]
[1750081553651,0.56968447,106800.0,106790.0,0.2]
[1750081553897,0.56972498,106780.0,106770.0,0.4717829]
[1750081554136,0.38242399,106780.0,106770.0,0.28129046]
[1750081554368,0.56972498,106780.0,106770.0,0.28129046]
[1750081554618,0.57911038,106770.0,106760.0,0.41532238]
[1750081554832,0.57911108,106770.0,106760.0,0.50224513]
[1750081555055,0.35433,106770.0,106760.0,0.51161131]
[1750081555290,0.37306053,106770.0,106760.0,0.51161131]
[1750081555513,0.04242601,106770.0,106760.0,0.51161131]
[1750081555741,0.03540126,106770.0,106760.0,0.51161131]
[1750081556392,0.02603595,106770.0,106760.0,0.51161131]
[1750081556611,0.03540135,106770.0,106760.0,0.51161131]
[1750081556844,0.03640135,106770.0,106760.0,0.51761131]
[1750081557069,0.04576701,106770.0,106760.0,0.51761131]
[1750081557292,0.22772067,106770.0,106760.0,0.19338334]
[1750081557481,0.22537994,106770.0,106760.0,0.2121165]
[1750081557732,0.22537994,106770.0,106760.0,0.19338334]
[1750081558046,0.20664853,106770.0,106760.0,0.20275014]
[1750081558281,0.20664853,106770.0,106760.0,0.00604726]
[1750081558737,0.20664853,106770.0,106760.0,0.20275005]
[1750081558979,0.20664853,106770.0,106760.0,0.21211667]
[1750081559249,0.01933,106770.0,106760.0,0.23084921]
[1750081559495,0.00993,106770.0,106760.0,0.42228954]
[1750081559746,0.005,106770.0,106760.0,0.46968954]
[1750081560705,0.00969,106770.0,106760.0,0.54709097]
[1750081563706,0.00969,106770.0,106760.0,0.59299097]
[1750081563937,0.005,106770.0,106760.0,0.59299097]
[1750081564167,0.005,106770.0,106760.0,0.84299097]
[1750081564641,0.005,106770.0,106760.0,0.59299097]
[1750081565817,0.004,106770.0,106760.0,0.58699097]
[1750081566060,0.00469,106780.0,106770.0,0.43871524]
[1750081566300,0.00469,106780.0,106770.0,0.559157]
[1750081566548,0.032812,106790.0,106780.0,0.45859507]
[1750081566789,0.00469,106800.0,106790.0,0.4153749]
[1750081567036,0.00469,106800.0,106790.0,0.51161666]
[1750081567037,0.032811,106800.0,106790.0,0.51161666]
[1750081567261,0.25752867,106800.0,106790.0,0.2928892]
[1750081567503,0.26692867,106800.0,106790.0,0.30225302]
[1750081567744,0.25756608,106800.0,106790.0,0.30225302]
[1750081567957,0.06093688,106800.0,106790.0,0.31161657]
[1750081568180,0.0703,106800.0,106790.0,0.31161657]
[1750081568406,0.25990664,106800.0,106790.0,0.30225302]
[1750081568658,0.25756599,106800.0,106790.0,0.31161657]
[1750081568878,0.24820314,106800.0,106790.0,0.18728345]
[1750081569108,0.23884011,106800.0,106790.0,0.001]
[1750081569597,0.25274011,106800.0,106790.0,0.001]
[1750081570047,0.26728096,106800.0,106790.0,0.001]
[1750081570270,0.0234193,106780.0,106770.0,0.22478011]
[1750081570487,0.01639516,106780.0,106770.0,0.32102187]
[1750081570755,0.00703073,106780.0,106770.0,0.32102187]
[1750081570972,0.00469,106780.0,106770.0,0.56932187]
[1750081571211,0.042811,106800.0,106790.0,0.6153749]
[1750081571433,0.033811,106800.0,106790.0,0.75991666]
[1750081571654,0.40189956,106800.0,106790.0,0.51288929]
[1750081571881,0.40189956,106800.0,106790.0,0.21537542]
[1750081571882,0.59852876,106800.0,106790.0,0.21537542]
[1750081572105,0.60792876,106800.0,106790.0,0.22473906]
[1750081572333,0.60792876,106800.0,106790.0,0.22473915]
[1750081572556,0.21070152,106790.0,106780.0,0.39665003]
[1750081572777,0.37278075,106790.0,106780.0,0.51162091]
[1750081572992,0.58819236,106790.0,106780.0,0.40601464]
[1750081573268,0.40090891,106790.0,106780.0,0.41537907]
[1750081573486,0.58819227,106790.0,106780.0,0.41537907]
[1750081573670,0.57882889,106790.0,106780.0,0.40601464]
[1750081573886,0.58282889,106790.0,106780.0,0.38728516]
[1750081574148,0.56900152,106790.0,106780.0,0.20601498]
[1750081574367,0.56900152,106790.0,106780.0,0.22474428]
[1750081574890,0.57000152,106790.0,106780.0,0.2391088]
[1750081575104,0.57000152,106790.0,106780.0,0.23910819]
[1750081575105,0.3778172,106790.0,106780.0,0.23910819]
[1750081575328,0.38718119,106790.0,106780.0,0.23910819]
[1750081575548,0.39654527,106790.0,106780.0,0.23910819]
[1750081575769,0.3777811,106790.0,106780.0,0.23910819]
[1750081576455,0.36841711,106790.0,106780.0,0.23910819]
[1750081576682,0.36841711,106790.0,106780.0,0.61054852]
[1750081576683,0.00969,106790.0,106780.0,0.61054852]
[1750081576911,0.005,106790.0,106780.0,0.65864852]
[1750081577485,0.005,106790.0,106780.0,0.67864852]
[1750081578401,0.005,106790.0,106780.0,0.92864852]
[1750081580187,0.005,106790.0,106780.0,0.85344995]
[1750081582001,0.005,106790.0,106780.0,0.80344995]
[1750081583637,0.005,106790.0,106780.0,1.05344995]
[1750081585297,0.005,106790.0,106780.0,0.80344995]
[1750081586411,0.00969,106790.0,106780.0,0.80344995]
[1750081586636,0.00969,106790.0,106780.0,0.75534995]
[1750081587108,0.005,106790.0,106780.0,0.80644995]
[1750081589462,0.005,106790.0,106780.0,0.82644995]
[1750081589694,0.005,106790.0,106780.0,0.93885787]
[1750081589986,0.005,106790.0,106780.0,0.95339872]
[1750081590223,0.005,106790.0,106780.0,1.61093236]
[1750081590444,0.004,106790.0,106780.0,0.97633591]
[1750081590678,0.028117,106820.0,106810.0,0.70643457]
[1750081590907,0.028117,106820.0,106810.0,0.80267633]
[1750081591347,0.0048,106830.0,106820.0,0.21531441]
[1750081591348,0.00714073,106830.0,106820.0,0.21531441]
[1750081591609,0.03525373,106830.0,106820.0,0.31155617]
[1750081592069,0.03539535,106830.0,106820.0,0.31155617]
[1750081592533,0.03305462,106830.0,106820.0,0.36185617]
[1750081593636,0.04105462,106830.0,106820.0,0.36185617]
[1750081593855,0.04105462,106830.0,106820.0,0.36285617]
[1750081595188,0.04105462,106830.0,106820.0,0.31255617]
[1750081596121,0.03625462,106830.0,106820.0,0.36275617]
[1750081596333,0.04105462,106830.0,106820.0,0.31255617]
[1750081597043,0.00814162,106830.0,106820.0,0.36095617]
[1750081599541,0.00014162,106830.0,106820.0,0.35995617]
[1750081599978,0.00014162,106830.0,106820.0,0.36295617]
[1750081600859,0.00614162,106830.0,106820.0,0.36295617]
[1750081601083,0.00614162,106830.0,106820.0,0.58295617]
[1750081601328,0.01094162,106830.0,106820.0,0.58295617]
[1750081602898,0.00614162,106830.0,106820.0,0.58295617]
[1750081603605,0.21687495,106830.0,106820.0,0.29924176]
[1750081603907,0.21687495,106830.0,106820.0,0.19959239]
[1750081603908,0.66204938,106830.0,106820.0,0.19959239]
[1750081604137,0.23007294,106810.0,106800.0,0.18725016]
[1750081604375,0.36352588,106800.0,106790.0,0.40598098]
[1750081604603,0.57455517,106800.0,106790.0,0.51158656]
[1750081604821,0.38728865,106800.0,106790.0,0.53031384]
[1750081605035,0.40605053,106800.0,106790.0,0.53031384]
[1750081605227,0.41541356,106800.0,106790.0,0.53031384]
[1750081605485,0.42477676,106800.0,106790.0,0.53031384]
[1750081605721,0.01416355,106790.0,106780.0,0.39664985]
[1750081605945,0.03523191,106790.0,106780.0,0.42474376]
[1750081606135,0.0445959,106790.0,106780.0,0.42474376]
[1750081606383,0.02586801,106790.0,106780.0,0.42474376]
[1750081606608,0.035232,106790.0,106780.0,0.42474376]
[1750081607048,0.56251545,106790.0,106780.0,0.38930099]
[1750081607273,0.58465237,106790.0,106780.0,0.002]
[1750081607499,0.5938962,106790.0,106780.0,0.19866603]
[1750081607743,0.5988962,106790.0,106780.0,0.20803099]
[1750081607968,0.35904383,106790.0,106780.0,0.32300223]
[1750081608195,0.3498,106790.0,106780.0,0.33236666]
[1750081608427,0.3448,106790.0,106780.0,0.33236666]
[1750081608887,0.3518,106790.0,106780.0,0.35236666]
[1750081609079,0.3518,106790.0,106780.0,0.35036666]
[1750081609337,0.3518,106790.0,106780.0,0.55036666]
[1750081609792,0.3518,106790.0,106780.0,0.33036666]
[1750081610031,0.35416443,106780.0,106770.0,0.19668384]
[1750081610268,0.36352912,106780.0,106770.0,0.30233843]
[1750081610494,0.38225894,106780.0,106770.0,0.21546285]
[1750081610742,0.38225877,106780.0,106770.0,0.21546285]
[1750081610980,0.56955976,106780.0,106770.0,0.18736579]
[1750081611210,0.55083064,106780.0,106770.0,0.19673162]
[1750081611424,0.55583064,106780.0,106770.0,0.21546285]
[1750081611881,0.54646586,106780.0,106770.0,0.18736579]
[1750081612115,0.54146586,106780.0,106770.0,0.19673154]
[1750081612352,0.54146586,106780.0,106770.0,0.20809702]
[1750081612580,0.01416434,106780.0,106770.0,0.21746233]
[1750081612812,0.22253589,106780.0,106770.0,0.18736579]
[1750081613041,0.02352965,106780.0,106770.0,0.22482842]
[1750081613288,0.23290102,106780.0,106770.0,0.22482859]
[1750081613518,0.23019577,106780.0,106770.0,0.21546311]
[1750081613747,0.21146603,106780.0,106770.0,4.726e-05]
[1750081613970,0.21146603,106780.0,106770.0,0.20609754]
[1750081614416,0.21146603,106780.0,106770.0,0.22482895]
[1750081614851,0.04289417,106780.0,106770.0,0.23419348]
[1750081615110,0.03586951,106780.0,106770.0,0.23419348]
[1750081615388,0.02650516,106780.0,106770.0,0.23419348]
[1750081615878,0.04527073,106780.0,106770.0,0.23419348]
[1750081616106,0.04293,106780.0,106770.0,0.73043524]
[1750081616338,0.04293,106780.0,106770.0,0.80183524]
[1750081616339,0.03813,106780.0,106770.0,0.80183524]
[1750081617019,0.01,106780.0,106770.0,0.80183524]
[1750081618134,0.01,106780.0,106770.0,0.82183524]
[1750081619319,0.01,106780.0,106770.0,0.80183524]
[1750081619779,0.37748838,106790.0,106780.0,0.21539507]
[1750081620018,0.37748838,106790.0,106780.0,0.36143683]
[1750081620019,0.373025,106790.0,106780.0,0.36143683]
[1750081620245,0.368125,106790.0,106780.0,0.36143683]
[1750081620725,0.028125,106790.0,106780.0,0.36143683]
[1750081620957,0.028125,106790.0,106780.0,0.38143683]
[1750081621188,0.038125,106790.0,106780.0,0.38143683]
[1750081622116,0.01,106790.0,106780.0,0.38143683]
[1750081622581,0.011,106790.0,106780.0,0.38143683]
[1750081623058,0.028119,106810.0,106800.0,0.70475473]
[1750081623285,0.033019,106810.0,106800.0,0.80099649]
[1750081623516,0.03535973,106810.0,106800.0,0.80099649]
[1750081624424,0.06344566,106810.0,106800.0,0.31159649]
[1750081624647,0.04635973,106810.0,106800.0,0.31259649]
[1750081624865,0.045019,106810.0,106800.0,0.31259649]
[1750081625080,0.04735973,106810.0,106800.0,0.31259649]
[1750081625526,0.07544566,106810.0,106800.0,0.51259649]
[1750081625748,0.31021273,106810.0,106800.0,0.001]
[1750081625984,0.32241285,106810.0,106800.0,0.001]
[1750081626212,5.37731285,106810.0,106800.0,0.001]
[1750081626668,5.33483245,106810.0,106800.0,0.001]
[1750081626944,5.31553245,106810.0,106800.0,0.1976292]
[1750081627166,0.05438071,106810.0,106800.0,0.22571785]
[1750081627380,0.06608333,106810.0,106800.0,0.22571785]
[1750081627595,0.08480772,106810.0,106800.0,0.22571785]
[1750081627813,0.2720561,106810.0,106800.0,0.22571785]
[1750081628033,0.08246699,106810.0,106800.0,0.22571785]
[1750081628262,0.28141843,106810.0,106800.0,0.22571785]
[1750081628471,0.09182932,106810.0,106800.0,0.22571785]
[1750081628699,0.28141913,106810.0,106800.0,0.22571785]
[1750081628920,0.2790784,106810.0,106800.0,0.21635526]
[1750081629139,0.26971651,106810.0,106800.0,0.21635526]
[1750081629360,0.26971651,106810.0,106800.0,0.22571811]
[1750081629585,0.040119,106810.0,106800.0,0.38332255]
[1750081629842,0.040119,106810.0,106800.0,0.60332255]
[1750081630491,0.04245973,106810.0,106800.0,0.60332255]
[1750081630781,0.05182144,106810.0,106800.0,0.58332255]
[1750081631008,0.60269466,106810.0,106800.0,0.19762903]
[1750081631233,0.59099195,106810.0,106800.0,0.19762903]
[1750081631463,0.59099195,106810.0,106800.0,0.18826591]
[1750081631699,0.59099195,106810.0,106800.0,0.001]
[1750081631700,0.58162971,106810.0,106800.0,0.001]
[1750081632167,0.69338962,106810.0,106800.0,0.001]
[1750081633304,0.61557056,106810.0,106800.0,0.001]
[1750081635590,0.61057056,106810.0,106800.0,0.001]
[1750081636951,0.40892218,106810.0,106800.0,0.19762911]
[1750081637178,0.40374278,106810.0,106800.0,0.21635473]
[1750081637393,0.3943808,106810.0,106800.0,0.56239649]
[1750081637612,0.39438063,106810.0,106800.0,0.56239649]
[1750081638020,0.39884243,106810.0,106800.0,0.56239649]
[1750081638232,0.40374243,106810.0,106800.0,0.56239649]
[1750081638473,0.41310432,106810.0,106800.0,0.56239649]
[1750081638688,0.61907762,106810.0,106800.0,0.56239649]
[1750081638908,0.43182924,106810.0,106800.0,0.56239649]
[1750081639132,0.60971529,106810.0,106800.0,0.35303381]
[1750081639350,0.60035349,106810.0,106800.0,0.20699223]
[1750081639795,0.60035349,106810.0,106800.0,0.21635508]
[1750081640542,0.38948063,106810.0,106800.0,0.27631776]
[1750081640749,0.39884243,106810.0,106800.0,0.37255952]
[1750081640960,0.40820441,106810.0,106800.0,0.37255952]
[1750081641181,0.39884243,106810.0,106800.0,0.37255952]
[1750081641424,0.41756647,106810.0,106800.0,0.37255952]
[1750081641634,0.43182871,106810.0,106800.0,0.37255952]
[1750081641846,0.60035366,106810.0,106800.0,0.32873399]
[1750081642050,0.59099168,106810.0,106800.0,0.32873399]
[1750081642487,0.59099168,106810.0,106800.0,0.20699232]
[1750081642742,0.59099168,106810.0,106800.0,0.21635535]
[1750081642951,0.58162962,106810.0,106800.0,0.21635535]
[1750081643199,0.58162962,106810.0,106800.0,0.22571811]
[1750081643409,0.5909916,106810.0,106800.0,0.22571811]
[1750081643642,0.60035393,106810.0,106800.0,0.21635535]
[1750081643860,0.60035393,106810.0,106800.0,0.22571811]
[1750081644096,0.42246708,106810.0,106800.0,0.28448079]
[1750081644493,0.43182941,106810.0,106800.0,0.28448079]
[1750081644749,0.61907849,106810.0,106800.0,0.25031811]
[1750081644961,0.60553297,106810.0,106800.0,0.001]
[1750081645407,0.60553297,106810.0,106800.0,0.19762903]
[1750081645627,0.60553297,106810.0,106800.0,0.20699197]
[1750081645843,0.60553297,106810.0,106800.0,0.21635482]
[1750081646056,0.60553297,106810.0,106800.0,0.18826591]
[1750081646583,0.60553297,106810.0,106800.0,0.1976292]
[1750081646810,0.59617064,106810.0,106800.0,0.01036329]
[1750081647034,0.59617064,106810.0,106800.0,0.1976292]
[1750081647251,0.59617064,106810.0,106800.0,0.20699232]
[1750081647729,0.59617064,106810.0,106800.0,0.1976292]
[1750081648163,0.59617064,106810.0,106800.0,0.2069924]
[1750081648380,0.59617064,106810.0,106800.0,0.21635543]
[1750081648877,0.59617064,106810.0,106800.0,0.1976292]
[1750081649099,0.38235527,106790.0,106780.0,0.24936012]
[1750081649344,0.3636272,106790.0,106780.0,0.28332455]
[1750081649984,0.34,106790.0,106780.0,0.37956631]
[1750081650205,0.34,106790.0,106780.0,0.59956631]
[1750081650422,0.34,106790.0,106780.0,0.60156631]
[1750081650640,0.347,106790.0,106780.0,0.60256631]
[1750081651305,0.007,106790.0,106780.0,0.60256631]
[1750081651527,0.007,106790.0,106780.0,0.63988404]
[1750081651768,0.007,106790.0,106780.0,0.65988404]
[1750081652335,0.007,106790.0,106780.0,0.71586064]
[1750081652620,0.007,106790.0,106780.0,0.67854291]
[1750081653441,0.007,106790.0,106780.0,0.71593102]
[1750081653840,0.007,106790.0,106780.0,0.89593102]
[1750081655108,0.007,106790.0,106780.0,0.83995442]
[1750081655337,0.01636347,106790.0,106780.0,0.58256631]
[1750081655581,0.02366411,106790.0,106780.0,0.78256631]
[1750081655829,0.04239131,106790.0,106780.0,0.38256631]
[1750081656258,0.05175521,106790.0,106780.0,0.38256631]
[1750081656957,0.0611192,106790.0,106780.0,0.38256631]
[1750081657181,0.23903988,106790.0,106780.0,0.2183956]
[1750081657421,0.23669915,106790.0,106780.0,0.22776029]
[1750081658292,0.21797152,106790.0,106780.0,0.19966595]
[1750081658516,0.21797152,106790.0,106780.0,0.21839534]
[1750081658712,0.21797152,106790.0,106780.0,0.20903073]
[1750081658932,0.55797152,106790.0,106780.0,0.19966595]
[1750081659384,0.55797152,106790.0,106780.0,0.2090309]
[1750081659610,0.54860753,106790.0,106780.0,0.19966603]
[1750081660284,0.54860753,106790.0,106780.0,0.003]
[1750081660502,0.56314838,106790.0,106780.0,0.003]
[1750081661864,0.347,106790.0,106780.0,0.36493683]
[1750081662087,0.347,106790.0,106780.0,0.56493683]
[1750081663185,0.347,106790.0,106780.0,0.003]
[1750081663186,5.62251237,106790.0,106780.0,0.003]
[1750081663414,5.62251237,106790.0,106770.0,4.726e-05]
[1750081663415,0.21616671,106780.0,106770.0,4.726e-05]
[1750081664768,0.22416671,106780.0,106770.0,0.00304726]
[1750081664999,0.56556965,106760.0,106750.0,0.0559766]
[1750081665216,0.55620347,106760.0,106750.0,0.0559766]
[1750081665428,5.60620347,106760.0,106750.0,0.0559766]
[1750081665648,5.60620347,106760.0,106750.0,0.06474078]
[1750081665863,5.60620347,106760.0,106750.0,0.06474094]
[1750081666066,5.60620347,106760.0,106750.0,0.0559766]
[1750081666272,5.60620347,106760.0,106750.0,0.0579766]
[1750081666476,5.61620347,106760.0,106750.0,0.0579766]
[1750081667554,0.21622197,106750.0,106740.0,0.07441647]
[1750081667771,0.22558938,106750.0,106740.0,0.27115612]
[1750081668012,0.21622197,106750.0,106740.0,0.08315684]
[1750081668666,0.21622197,106750.0,106740.0,0.08315679]
[1750081668872,0.21622197,106750.0,106740.0,0.07441647]
[1750081669103,0.24436397,106750.0,106740.0,0.07441647]
[1750081669284,0.24736397,106750.0,106740.0,0.07441647]
[1750081669691,0.25836397,106750.0,106740.0,0.07441647]
[1750081670138,0.33764499,106750.0,106740.0,0.07441647]
[1750081670375,5.60625884,106730.0,106720.0,0.09315916]
[1750081670591,0.55627727,106720.0,106710.0,0.13021081]
[1750081670806,0.55627727,106720.0,106700.0,0.02]
[1750081670807,0.2162958,106710.0,106700.0,0.02]
[1750081671239,0.2162958,106710.0,106700.0,0.20744142]
[1750081671466,0.2162958,106710.0,106700.0,0.02]
[1750081671742,0.2162958,106710.0,106690.0,0.18601545]
[1750081671743,0.19681331,106700.0,106690.0,0.18601545]
[1750081671966,0.21631416,106700.0,106690.0,0.18648862]
[1750081672194,0.20694227,106700.0,106690.0,0.18648862]
[1750081672429,0.21633278,106690.0,106680.0,0.24182009]
[1750081672654,0.21633278,106690.0,106680.0,0.24196197]
[1750081672866,0.29858,106690.0,106680.0,0.24196197]
[1750081673106,0.21633278,106690.0,106680.0,0.43881235]
[1750081673327,0.21633278,106690.0,106680.0,0.24196197]
[1750081673765,0.22587847,106690.0,106680.0,0.18761844]
[1750081673975,0.22587847,106690.0,106680.0,0.19699209]
[1750081674199,0.23887847,106690.0,106680.0,0.19699209]
[1750081674662,0.04204654,106690.0,106680.0,0.22611268]
[1750081674889,0.25259171,106690.0,106680.0,0.00114188]
[1750081675104,5.36506958,106690.0,106680.0,0.00114188]
[1750081675322,5.46131134,106690.0,106680.0,0.00114188]
[1750081675794,5.30025098,106690.0,106680.0,0.19799226]
[1750081676009,0.02933224,106690.0,106680.0,0.27651268]
[1750081676239,0.03167297,106690.0,106680.0,0.27651268]
[1750081676471,0.24725018,106690.0,106680.0,0.26713965]
[1750081676683,0.24725018,106690.0,106680.0,0.00114188]
[1750081676684,0.24070555,106690.0,106680.0,0.00114188]